bitfinex/quotes_SOLUSD_20250506
["timestamp","ask_amount","ask_price","bid_price","bid_amount"]
[1746536185952,67.4,143.34,143.33,15.01635877]
[1746536186577,67.4,143.34,143.32,15.01635877]
[1746536188865,67.4,143.34,143.33,15.01635877]
[1746536189865,67.4,143.36,143.33,15.01635877]
[1746536190059,67.4,143.36,143.34,15.01635877]
[1746536190846,67.4,143.36,143.35,15.01635877]
[1746536196373,32.45026655,143.4,143.35,21.9922918]
[1746536196374,67.4,143.39,143.35,21.9922918]
[1746536196573,67.4,143.38,143.37,15.01635877]
[1746536202891,67.4,143.38,143.37,21.99131866]
[1746536203177,143.38760121,143.42,143.37,21.99131866]
[1746536203178,67.4,143.42,143.37,21.99131866]
[1746536203381,67.4,143.41,143.4,15.01635877]
[1746536203769,67.4,143.41,143.39,15.01635877]
[1746536203963,67.4,143.41,143.38,15.01635877]
[1746536204960,6.97350069,143.4,143.38,15.01635877]
[1746536205894,74.37317757,143.41,143.38,15.01635877]
[1746536207993,67.4,143.4,143.38,15.01635877]
[1746536209203,74.37361059,143.4,143.38,15.01635877]
[1746536211672,67.4,143.4,143.38,15.01635877]
[1746536212177,74.3735828,143.4,143.38,15.01635877]
[1746536214899,67.4,143.4,143.38,15.01635877]
[1746536215588,67.4,143.4,143.39,15.01635877]
[1746536216618,67.4,143.4,143.36,6.97543319]
[1746536216783,67.4,143.4,143.38,15.01635877]
[1746536217193,74.37353692,143.4,143.38,15.01635877]
[1746536217391,74.37353692,143.4,143.37,15.01635877]
[1746536220511,74.37353692,143.4,143.35,6.97572058]
[1746536220805,89.38989569,143.4,143.35,20.71572058]
[1746536221010,82.41635877,143.39,143.35,28.75635877]
[1746536221807,15.01635877,143.38,143.35,13.74]
[1746536223097,6.97492409,143.38,143.35,28.75635877]
[1746536225908,67.4,143.37,143.35,28.75635877]
[1746536227423,74.3750028,143.37,143.35,28.75635877]
[1746536228017,67.4,143.37,143.35,28.75635877]
[1746536229622,74.3750237,143.37,143.35,28.75635877]
[1746536230416,67.4,143.37,143.35,28.75635877]
[1746536231823,67.4,143.37,143.35,23.35458141]
[1746536232629,67.4,143.37,143.36,9.61458141]
[1746536233927,67.4,143.37,143.36,16.59002783]
[1746536237021,67.4,143.37,143.36,9.61458141]
[1746536237621,67.4,143.37,143.36,16.59002783]
[1746536237822,74.37380509,143.4,143.36,21.99235234]
[1746536238023,67.4,143.4,143.38,15.01690592]
[1746536239719,67.4,143.4,143.39,15.01690592]
[1746536245436,67.4,143.4,143.38,15.01690592]
[1746536250513,67.4,143.4,143.39,15.01690592]
[1746536251512,68.1743884,143.43,143.39,15.01690592]
[1746536251713,68.1743884,143.43,143.41,15.01690592]
[1746536252140,0.7743884,143.43,143.42,7.7217]
[1746536252322,0.7743884,143.43,143.42,84.44804007]
[1746536252513,0.7743884,143.43,143.42,21.4417]
[1746536252711,0.7743884,143.43,143.42,34.89170592]
[1746536253336,0.7743884,143.43,143.42,19.8748]
[1746536253533,0.7743884,143.43,143.42,28.73690592]
[1746536256115,0.7743884,143.43,143.42,13.72]
[1746536256315,0.7743884,143.43,143.42,28.73690592]
[1746536257740,0.7743884,143.43,143.42,23.32463734]
[1746536258533,0.7743884,143.43,143.4,9.60463734]
[1746536258741,10.37902574,143.43,143.4,9.60463734]
[1746536259121,67.4,143.42,143.39,9.60463734]
[1746536259322,77.00463734,143.42,143.38,29.33373734]
[1746536259523,77.00463734,143.42,143.38,36.30808438]
[1746536259942,67.4,143.42,143.38,36.30808438]
[1746536260237,67.4,143.42,143.39,9.60463734]
[1746536260940,67.4,143.42,143.38,19.7291]
[1746536261247,83.97722208,143.42,143.38,9.60463734]
[1746536261949,89.38820126,143.42,143.38,15.01561652]
[1746536262543,67.4,143.41,143.38,15.01561652]
[1746536263444,67.4,143.41,143.39,15.01561652]
[1746536265455,67.4,143.4,143.36,20.69521924]
[1746536265643,67.4,143.39,143.37,15.01561652]
[1746536265832,74.37406781,143.39,143.37,15.01561652]
[1746536266532,67.4,143.39,143.37,15.01561652]
[1746536268556,67.4,143.39,143.38,15.01561652]
[1746536270155,67.4,143.39,143.37,15.01561652]
[1746536272946,67.4,143.39,143.37,21.99057347]
[1746536273154,67.4,143.39,143.37,15.01561652]
[1746536278848,67.4,143.39,143.34,46.2949]
[1746536279053,74.37415298,143.39,143.34,53.27122319]
[1746536279244,67.4,143.38,143.34,53.27122319]
[1746536279455,67.4,143.38,143.35,15.01561652]
[1746536279671,67.4,143.38,143.36,15.01561652]
[1746536280476,74.37460353,143.38,143.36,15.01561652]
[1746536280892,67.4,143.38,143.36,15.01561652]
[1746536281890,67.4,143.38,143.37,15.01561652]
[1746536282889,6.97402805,143.39,143.37,15.01561652]
[1746536283581,6.97402805,143.39,143.36,15.01561652]
[1746536283890,6.97402805,143.39,143.36,9.61294686]
[1746536285893,67.4,143.37,143.36,9.61294686]
[1746536286271,67.4,143.36,143.34,13.72]
[1746536286476,67.4,143.36,143.31,7.8029]
[1746536286686,67.4,143.35,143.34,9.61294686]
[1746536287684,67.4,143.35,143.33,6.9767199]
[1746536287899,67.4,143.35,143.33,22.00215305]
[1746536290097,67.4,143.35,143.33,21.35518484]
[1746536290490,67.4,143.35,143.33,15.02543315]
[1746536290990,67.4,143.35,143.34,15.02543315]
[1746536292398,67.4,143.35,143.33,6.97670023]
[1746536292699,67.4,143.35,143.34,15.02543315]
[1746536293492,82.42543315,143.35,143.31,33.8029]
[1746536293706,67.4,143.34,143.31,6.1679]
[1746536293881,67.4,143.33,143.31,21.19333315]
[1746536299593,67.4,143.33,143.31,15.02543315]
[1746536302893,74.37693568,143.33,143.3,13.72]
[1746536303089,74.37693568,143.33,143.31,15.02543315]
[1746536303690,67.4,143.33,143.31,15.02543315]
[1746536304202,67.4,143.33,143.3,13.72]
[1746536304380,67.4,143.33,143.31,15.02543315]
[1746536305301,67.4,143.33,143.32,15.02543315]
[1746536306993,67.4,143.33,143.31,15.02543315]
[1746536307791,67.4,143.33,143.31,9.61982476]
[1746536309798,6.97653418,143.34,143.31,9.61982476]
[1746536316217,16.59635894,143.34,143.31,9.61982476]
[1746536316910,6.97653418,143.34,143.31,9.61982476]
[1746536318097,16.59635894,143.34,143.31,9.61982476]
[1746536319618,6.97653418,143.34,143.31,9.61982476]
[1746536322207,6.97653418,143.34,143.32,9.61982476]
[1746536326716,6.97653418,143.34,143.3,6.97823238]
[1746536326907,6.97653418,143.34,143.32,9.61982476]
[1746536328129,74.37600204,143.35,143.32,9.61982476]
[1746536332820,83.9958268,143.35,143.31,9.61982476]
[1746536335242,74.37600204,143.35,143.32,9.61982476]
[1746536336353,83.9958268,143.35,143.31,9.61982476]
[1746536337545,83.9958268,143.35,143.29,6.97885407]
[1746536337743,83.9958268,143.35,143.31,9.61982476]
[1746536337949,83.9958268,143.35,143.3,9.61982476]
[1746536338625,83.9958268,143.35,143.31,9.61982476]
[1746536340965,83.9958268,143.35,143.3,9.61982476]
[1746536345154,74.37600204,143.35,143.31,9.61982476]
[1746536348476,83.9958268,143.35,143.29,6.9786338]
[1746536348653,83.9958268,143.35,143.31,9.61982476]
[1746536354474,83.9958268,143.35,143.3,9.61982476]
[1746536356455,83.9958268,143.35,143.31,9.61982476]
[1746536361082,74.37600204,143.35,143.31,9.61982476]
[1746536361472,74.37600204,143.35,143.32,9.61982476]
[1746536363284,74.37600204,143.35,143.31,9.61982476]
[1746536364872,83.9958268,143.35,143.31,9.61982476]
[1746536366382,83.9958268,143.35,143.3,9.61982476]
[1746536366589,9.61982476,143.34,143.3,9.61982476]
[1746536367885,101.43565937,143.35,143.3,9.61982476]
[1746536368061,101.43565937,143.35,143.31,9.61982476]
[1746536370790,83.9958268,143.35,143.31,9.61982476]
[1746536372705,74.37600204,143.35,143.32,9.61982476]
[1746536373382,67.4,143.35,143.33,16.596628]
[1746536373594,67.4,143.35,143.34,9.61982476]
[1746536373899,83.9951352,143.37,143.33,9.61982476]
[1746536374794,74.37531044,143.37,143.33,9.61982476]
[1746536375097,83.9951352,143.37,143.33,9.61982476]
[1746536379581,83.9951352,143.37,143.32,14.59717793]
[1746536379790,83.9951352,143.37,143.33,9.61982476]
[1746536390397,74.37531044,143.37,143.34,9.61982476]
[1746536392096,83.9951352,143.37,143.33,9.61982476]
[1746536401116,83.9951352,143.37,143.32,17.23962476]
[1746536401419,83.9951352,143.37,143.33,9.61982476]
[1746536402120,74.37531044,143.37,143.32,14.59716289]
[1746536402321,67.4,143.39,143.36,9.61982476]
[1746536402497,67.4,143.39,143.37,9.61982476]
[1746536402697,67.4,143.39,143.32,58.040646]
[1746536402698,67.4,143.39,143.33,18.64964886]
[1746536402899,6.97370239,143.4,143.37,9.61982476]
[1746536403109,6.97370239,143.4,143.33,18.64964886]
[1746536403319,6.97323975,143.41,143.38,9.61982476]
[1746536403827,6.97323975,143.41,143.35,13.7]
[1746536403828,9.61982476,143.4,143.37,9.61982476]
[1746536403997,9.61982476,143.38,143.35,13.7]
[1746536404200,9.61982476,143.37,143.33,9.61982476]
[1746536404621,77.01982476,143.38,143.32,7.6198]
[1746536404812,67.4,143.37,143.34,9.61982476]
[1746536405119,77.01982476,143.37,143.33,9.61982476]
[1746536405321,6.97544642,143.36,143.33,9.61982476]
[1746536405924,6.97544642,143.36,143.32,7.6198]
[1746536405925,6.97544642,143.36,143.34,9.61982476]
[1746536406827,74.37517639,143.37,143.34,9.61982476]
[1746536408839,74.37517639,143.37,143.35,9.61982476]
[1746536409011,6.97415695,143.39,143.36,9.61982476]
[1746536410132,16.59398171,143.39,143.35,9.61982476]
[1746536411528,9.61982476,143.38,143.34,9.61982476]
[1746536411707,6.97415695,143.39,143.33,9.61982476]
[1746536411708,9.61982476,143.37,143.33,9.61982476]
[1746536412137,9.61982476,143.37,143.32,17.23962476]
[1746536413537,9.61982476,143.36,143.32,17.23962476]
[1746536413732,15.02792814,143.36,143.32,22.64772814]
[1746536414237,15.02792814,143.34,143.3,15.02792814]
[1746536414438,15.02792814,143.34,143.29,15.02792814]
[1746536415125,15.02792814,143.34,143.3,15.02792814]
[1746536415944,22.00470977,143.34,143.3,15.02792814]
[1746536416239,22.00470977,143.34,143.29,6.97882743]
[1746536416240,6.97678163,143.34,143.31,15.02792814]
[1746536416532,89.40408086,143.35,143.31,15.02792814]
[1746536417318,67.4,143.35,143.34,15.02792814]
[1746536417535,74.3753785,143.37,143.34,15.02792814]
[1746536419429,67.4,143.37,143.34,15.02792814]
[1746536420632,74.37500798,143.37,143.34,15.02792814]
[1746536423231,89.40293612,143.37,143.32,6.97739324]
[1746536423432,89.40293612,143.37,143.33,15.02792814]
[1746536424014,74.37500798,143.37,143.34,15.02792814]
[1746536427338,89.40293612,143.37,143.31,13.68]
[1746536427514,15.02792814,143.36,143.32,15.02792814]
[1746536428141,15.02792814,143.36,143.31,13.68]
[1746536428322,15.02792814,143.36,143.32,15.02792814]
[1746536428845,6.97593303,143.35,143.32,15.02792814]
[1746536430519,6.97560594,143.36,143.33,15.02792814]
[1746536431336,15.02792814,143.34,143.29,15.02792814]
[1746536431541,82.42792814,143.35,143.31,15.02792814]
[1746536432436,6.9764197,143.34,143.31,15.02792814]
[1746536437857,6.9764197,143.34,143.31,9.61980202]
[1746536438749,34.03727097,143.34,143.3,9.61980202]
[1746536439565,9.61980202,143.33,143.27,13.68]
[1746536439749,9.61980202,143.32,143.27,13.68]
[1746536439924,9.61980202,143.32,143.28,9.61980202]
[1746536440240,6.97788012,143.31,143.28,9.61980202]
[1746536441735,39.46079537,143.31,143.27,13.68]
[1746536441952,39.46079537,143.31,143.27,28.71821495]
[1746536442649,39.46079537,143.31,143.27,15.03821495]
[1746536442856,15.03821495,143.29,143.25,8.0754]
[1746536443031,15.03821495,143.27,143.23,32.28860932]
[1746536443460,6.98031551,143.26,143.23,17.25039437]
[1746536443757,6.98031551,143.26,143.24,15.03821495]
[1746536444060,6.97998924,143.27,143.24,15.03821495]
[1746536446157,67.4,143.28,143.26,15.03821495]
[1746536446354,43.44484948,143.31,143.23,17.25039437]
[1746536446355,67.4,143.31,143.27,15.03821495]
[1746536446540,67.4,143.31,143.24,6.98106835]
[1746536446541,67.4,143.31,143.28,15.03821495]
[1746536446856,74.37810349,143.31,143.28,15.03821495]
[1746536448067,89.41631844,143.31,143.27,15.03821495]
[1746536448567,15.03821495,143.29,143.25,15.03821495]
[1746536448770,82.43821495,143.28,143.24,15.03821495]
[1746536448943,82.43821495,143.27,143.23,28.71821495]
[1746536449353,67.4,143.27,143.24,15.03821495]
[1746536449968,6.98031551,143.26,143.24,15.03821495]
[1746536451057,6.98031551,143.26,143.23,28.71821495]
[1746536454572,22.01853046,143.26,143.23,13.68]
[1746536454870,22.01853046,143.26,143.22,15.03821495]
[1746536456857,89.41853046,143.26,143.22,15.03821495]
[1746536460351,15.03821495,143.24,143.2,15.03821495]
[1746536461876,6.98177756,143.23,143.2,15.03821495]
[1746536462053,6.98177756,143.23,143.2,18.62341672]
[1746536462451,6.98177756,143.23,143.2,15.03821495]
[1746536462768,15.03821495,143.21,143.19,13.68]
[1746536462971,82.43821495,143.22,143.17,7.8905]
[1746536463275,82.43821495,143.22,143.18,15.03821495]
[1746536464481,89.42083081,143.22,143.18,15.03821495]
[1746536466866,106.87649342,143.22,143.17,22.92871495]
[1746536467071,15.03821495,143.21,143.17,22.92871495]
[1746536467267,15.03821495,143.21,143.17,6.3116]
[1746536467473,15.03821495,143.2,143.15,13.68]
[1746536467757,15.03821495,143.2,143.16,15.03821495]
[1746536468776,6.98372791,143.19,143.16,15.03821495]
[1746536470887,6.98372791,143.19,143.15,17.13024531]
[1746536471182,6.98372791,143.19,143.16,15.03821495]
[1746536471899,6.98372791,143.19,143.17,15.03821495]
[1746536472465,6.98372791,143.19,143.16,15.03821495]
[1746536472682,6.98372791,143.19,143.15,17.13024531]
[1746536472683,22.02194286,143.19,143.15,28.71821495]
[1746536473184,22.02194286,143.19,143.15,15.03821495]
[1746536473578,39.48126264,143.19,143.15,15.03821495]
[1746536473883,82.43821495,143.18,143.14,22.76201495]
[1746536474087,82.43821495,143.18,143.14,21.24971495]
[1746536474274,67.4,143.17,143.14,21.24971495]
[1746536474476,67.4,143.17,143.13,15.03821495]
[1746536474674,82.43821495,143.17,143.13,15.03821495]
[1746536475187,6.98519139,143.16,143.13,15.03821495]
[1746536477066,39.48638482,143.16,143.11,21.9558]
[1746536477284,39.48638482,143.16,143.12,15.03821495]
[1746536477681,82.43821495,143.15,143.11,8.2558]
[1746536477989,82.43821495,143.15,143.11,21.66291495]
[1746536479084,15.03821495,143.14,143.11,6.6247]
[1746536479285,6.98665548,143.13,143.11,6.6247]
[1746536479482,19.97194886,143.08,142.93,1.6055]
[1746536479683,15.03821495,143.07,143.02,15.03821495]
[1746536479880,18.64964886,143.08,143.03,15.03821495]
[1746536479881,15.03821495,143.08,143.03,15.03821495]
[1746536480274,15.03821495,143.07,143.02,15.03821495]
[1746536480480,13.7,143.1,143.04,15.03821495]
[1746536480805,24.46012998,143.09,143.04,15.03821495]
[1746536480976,15.03821495,143.08,143.03,15.03821495]
[1746536481469,24.46012998,143.09,143.03,15.03821495]
[1746536481675,15.03821495,143.08,143.03,15.03821495]
[1746536481981,15.03821495,143.08,143.04,15.03821495]
[1746536482589,6.98958551,143.07,143.03,15.03821495]
[1746536482787,22.02780046,143.07,143.03,15.03821495]
[1746536483503,22.02780046,143.07,143.02,6.334]
[1746536483796,22.02780046,143.07,143.03,15.03821495]
[1746536484380,6.98958551,143.07,143.03,15.03821495]
[1746536484581,39.49834493,143.09,143.04,15.03821495]
[1746536485203,15.03821495,143.08,143.04,15.03821495]
[1746536485499,15.03821495,143.08,143.03,15.03821495]
[1746536485994,24.46012998,143.09,143.04,15.03821495]
[1746536486188,15.03821495,143.08,143.04,15.03821495]
[1746536486693,6.98958551,143.07,143.04,15.03821495]
[1746536486908,22.02780046,143.07,143.03,15.03821495]
[1746536487393,22.02780046,143.07,143.02,7.992]
[1746536487602,15.03821495,143.06,143.02,7.992]
[1746536487795,15.03821495,143.06,143.02,23.03021495]
[1746536488103,82.43821495,143.06,143.02,23.03021495]
[1746536488580,6.99056274,143.05,143.02,23.03021495]
[1746536490203,6.99056274,143.05,143.03,15.03821495]
[1746536490715,6.99056274,143.05,143.02,23.03021495]
[1746536491198,22.02877769,143.05,143.02,6.334]
[1746536491602,6.99056274,143.05,143.02,6.334]
[1746536491804,67.4,143.06,143.04,15.03821495]
[1746536491974,67.4,143.06,143.05,15.03821495]
[1746536494195,74.39007409,143.06,143.05,15.03821495]
[1746536494415,74.39007409,143.06,143.04,15.03821495]
[1746536495503,74.39007409,143.06,143.03,15.03821495]
[1746536495804,15.03821495,143.04,143.0,15.03821495]
[1746536496109,82.43821495,143.03,142.99,15.03821495]
[1746536496274,6.99202908,143.02,142.99,15.03821495]
[1746536496593,89.42989431,143.03,142.99,15.03821495]
[1746536497695,89.42989431,143.03,142.98,22.62761495]
[1746536498099,89.42989431,143.03,142.99,15.03821495]
[1746536498698,15.03821495,143.01,142.97,15.03821495]
[1746536498903,15.03821495,143.01,142.95,1.5145]
[1746536499090,82.43821495,143.0,142.96,15.03821495]
[1746536499698,82.43821495,143.0,142.95,1.5145]
[1746536499890,82.43821495,143.0,142.96,15.03821495]
[1746536500096,82.43821495,143.0,142.95,1.5145]
[1746536500294,6.99398517,142.98,142.95,16.55271495]
[1746536500478,74.39398517,142.98,142.95,16.55271495]
[1746536500684,74.39398517,142.98,142.95,1.5145]
[1746536500906,74.39398517,142.98,142.95,16.55271495]
[1746536501211,67.4,142.98,142.96,15.03821495]
[1746536502389,74.39399206,142.98,142.96,15.03821495]
[1746536502590,67.4,142.98,142.96,15.03821495]
[1746536504187,67.4,142.98,142.97,15.03821495]
[1746536504588,67.4,142.98,142.95,8.50985739]
[1746536504796,67.4,142.98,142.96,15.03821495]
[1746536505508,67.4,142.98,142.95,16.55271495]
[1746536505814,74.39411165,142.98,142.95,16.55271495]
[1746536506387,67.4,142.98,142.95,16.55271495]
[1746536506691,67.4,142.98,142.95,1.5145]
[1746536506893,67.4,142.98,142.95,16.55271495]
[1746536507299,74.39403413,142.98,142.95,1.5145]
[1746536507505,74.39403413,142.98,142.95,16.55271495]
[1746536507707,74.39403413,142.98,142.95,15.03821495]
[1746536507894,74.39403413,142.98,142.94,21.57211495]
[1746536508098,74.39403413,142.98,142.94,6.5339]
[1746536508300,67.4,142.97,142.94,21.57211495]
[1746536508802,74.39457456,142.97,142.94,21.57211495]
[1746536509512,74.39457456,142.97,142.95,15.03821495]
[1746536510497,67.4,142.97,142.95,15.03821495]
[1746536510809,67.4,142.97,142.96,15.03821495]
[1746536512207,67.4,142.97,142.95,15.03821495]
[1746536513411,67.4,142.97,142.96,15.03821495]
[1746536513598,67.4,142.97,142.95,6.99542429]
[1746536513800,67.4,142.99,142.96,15.03821495]
[1746536514016,67.4,142.99,142.97,15.03821495]
[1746536515320,74.3935558,142.99,142.97,15.03821495]
[1746536515806,67.4,142.99,142.97,15.03821495]
[1746536518112,74.39366028,142.99,142.97,15.03821495]
[1746536518321,74.39366028,142.99,142.94,13.52961455]
[1746536518823,74.39366028,142.99,142.96,15.03821495]
[1746536519012,22.02877769,143.05,142.98,15.03821495]
[1746536519209,15.03821495,143.03,142.97,16.56821495]
[1746536519410,39.51031674,143.02,142.96,15.03821495]
[1746536519608,15.03821495,143.01,142.95,15.03821495]
[1746536520013,15.03821495,143.0,142.95,15.03821495]
[1746536520214,15.03821495,143.01,142.95,15.03821495]
[1746536520721,6.99349604,142.99,142.95,15.03821495]
[1746536521027,6.99349604,142.99,142.94,8.0639]
[1746536521222,6.99349604,142.99,142.95,15.03821495]
[1746536521728,6.99349604,142.99,142.96,15.03821495]
[1746536522420,6.99349604,142.99,142.95,15.03821495]
[1746536525532,6.99349604,142.99,142.94,15.0597459]
[1746536525825,74.39349604,142.99,142.95,15.03821495]
[1746536529644,74.39349604,142.99,142.95,22.03362349]
[1746536530111,74.39349604,142.99,142.96,15.03821495]
[1746536531827,74.39349604,142.99,142.95,15.03821495]
[1746536533744,74.39349604,142.99,142.96,15.03821495]
[1746536538659,74.39349604,142.99,142.94,8.0639]
[1746536538859,74.39349604,142.99,142.96,15.03821495]
[1746536539356,74.39349604,142.99,142.94,8.0639]
[1746536539533,74.39349604,142.99,142.95,15.03821495]
[1746536540666,67.4,142.99,142.96,15.03821495]
[1746536540840,67.4,142.99,142.97,15.03821495]
[1746536541041,74.39353346,142.99,142.97,15.03821495]
[1746536541459,67.4,142.99,142.97,15.03821495]
[1746536543366,67.4,142.99,142.98,15.03821495]
[1746536551855,67.4,142.99,142.97,15.03821495]
[1746536552072,67.4,142.99,142.98,15.03821495]
[1746536556375,67.4,142.99,142.95,6.99521911]
[1746536556545,67.4,142.99,142.98,15.03821495]
[1746536560364,67.4,142.99,142.97,15.03821495]
[1746536561771,67.4,142.99,142.95,6.99521911]
[1746536561977,67.4,142.99,142.97,9.66578998]
[1746536562368,67.4,142.99,142.98,9.66578998]
[1746536562541,6.99325098,143.0,142.98,9.66578998]
[1746536566144,74.39274924,143.01,142.98,9.66578998]
[1746536566769,9.66578998,143.0,142.94,8.0639]
[1746536566949,77.06578998,143.0,142.95,9.66578998]
[1746536567145,67.4,143.0,142.97,9.66578998]
[1746536567967,6.99349604,142.99,142.97,9.66578998]
[1746536572759,74.47166232,143.0,142.97,9.66578998]
[1746536574485,74.47166232,143.0,142.95,6.99544812]
[1746536574688,74.47166232,143.0,142.97,9.66578998]
[1746536575985,74.47166232,143.0,142.98,9.66578998]
[1746536578385,74.47166232,143.0,142.95,6.99544812]
[1746536578586,74.47166232,143.0,142.98,9.66578998]
[1746536578767,84.1374523,143.0,142.94,15.05959918]
[1746536578955,84.1374523,143.0,142.96,9.66578998]
[1746536580483,84.1374523,143.0,142.94,8.0639]
[1746536580681,84.1374523,143.0,142.96,9.66578998]
[1746536581493,74.47166232,143.0,142.97,9.66578998]
[1746536581980,74.47166232,143.0,142.94,15.05977647]
[1746536582185,74.47166232,143.0,142.97,13.18187082]
[1746536582394,87.65353314,143.0,142.94,15.05977647]
[1746536582595,67.4,142.99,142.96,13.18187082]
[1746536582970,67.4,142.99,142.94,8.0639]
[1746536583275,13.18187082,142.96,142.92,13.18187082]
[1746536583469,75.71508791,142.99,142.93,13.18187082]
[1746536583470,13.18187082,142.97,142.93,13.18187082]
[1746536583671,6.99496362,142.96,142.93,13.18187082]
[1746536586390,6.99496362,142.96,142.93,13.18839112]
[1746536587396,6.99447436,142.97,142.93,13.18839112]
[1746536587570,6.99447436,142.97,142.91,6.99719488]
[1746536587773,6.99447436,142.97,142.94,13.18839112]
[1746536591186,74.39420612,142.98,142.95,13.18839112]
[1746536591494,74.39420612,142.98,142.97,13.18839112]
[1746536591878,67.4,142.98,142.97,13.18839112]
[1746536592305,67.4,142.98,142.96,13.18839112]
[1746536592477,74.39404947,142.98,142.96,13.18839112]
[1746536592679,67.4,142.98,142.96,13.18839112]
[1746536593196,67.4,142.98,142.97,13.18839112]
[1746536593579,0.07843425,143.0,142.97,13.18839112]
[1746536593786,0.07843425,143.0,142.95,8.1544]
[1746536594019,0.07843425,143.0,142.98,13.18839112]
[1746536594900,7.07154356,143.0,142.98,13.18839112]
[1746536595199,0.07843425,143.0,142.98,13.18839112]
[1746536596186,0.07843425,143.0,142.99,13.18839112]
[1746536596589,0.07843425,143.0,142.96,6.99494572]
[1746536596782,0.07843425,143.0,142.99,13.18839112]
[1746536597609,0.07843425,143.0,142.95,15.14972397]
[1746536598009,0.07843425,143.0,142.99,13.18839112]
[1746536601110,0.07843425,143.0,142.96,6.99479827]
[1746536601302,0.07843425,143.0,142.99,13.18839112]
[1746536606792,0.07843425,143.0,142.98,13.18839112]
[1746536608518,0.07843425,143.0,142.95,15.14971081]
[1746536608690,0.07843425,143.0,142.98,13.18839112]
[1746536609214,0.07843425,143.0,142.95,15.14971081]
[1746536609405,0.07843425,143.0,142.98,13.18839112]
[1746536610516,0.07843425,143.0,142.97,13.18839112]
[1746536611326,13.18839112,142.99,142.95,19.71999112]
[1746536611499,80.58839112,142.99,142.95,19.71999112]
[1746536612223,80.58839112,142.99,142.95,6.5316]
[1746536612403,80.58839112,142.99,142.95,19.71999112]
[1746536612923,6.99398517,142.98,142.95,19.71999112]
[1746536613423,6.99398517,142.98,142.96,13.18839112]
[1746536614017,6.99398517,142.98,142.95,6.5316]
[1746536614535,6.99398517,142.98,142.95,13.18839112]
[1746536615316,6.99398517,142.98,142.94,13.72]
[1746536615514,6.99398517,142.98,142.95,13.18839112]
[1746536615721,67.4,142.97,142.94,13.18839112]
[1746536616325,6.99496362,142.96,142.94,13.18839112]
[1746536616922,6.99496362,142.96,142.92,1.6283]
[1746536617114,6.99496362,142.96,142.94,13.18839112]
[1746536619104,6.99496362,142.96,142.95,13.18839112]
[1746536623934,67.47843425,143.0,142.95,13.18839112]
[1746536624133,67.47843425,143.0,142.98,13.18839112]
[1746536624321,74.4716817,143.0,142.97,13.18839112]
[1746536629742,74.4716817,143.0,142.98,13.18839112]
[1746536639458,87.66007282,143.0,142.96,6.3519]
[1746536639642,87.66007282,143.0,142.96,13.18839112]
[1746536640563,74.4716817,143.0,142.97,13.18839112]
[1746536643268,74.4716817,143.0,142.99,13.18839112]
[1746536643269,0.07843425,143.0,142.99,13.18839112]
[1746536643669,67.4,143.05,142.99,13.18839112]
[1746536643670,67.4,143.05,142.99,84.59160446]
[1746536643841,74.38873128,143.09,143.04,13.18839112]
[1746536644039,74.38873128,143.09,143.06,13.18839112]
[1746536644249,13.18839112,143.07,143.01,26.0]
[1746536644584,13.18839112,143.07,143.03,13.18839112]
[1746536645048,6.99007409,143.06,143.03,13.18839112]
[1746536645659,6.99007409,143.06,143.02,13.18839112]
[1746536645849,20.17846521,143.06,143.02,13.18839112]
[1746536646253,67.4,143.05,143.02,13.18839112]
[1746536646556,13.18839112,143.03,142.98,13.18839112]
[1746536646738,80.58839112,143.02,142.98,13.18839112]
[1746536646933,6.992518,143.01,142.98,13.18839112]
[1746536647346,6.992518,143.01,142.97,13.18839112]
[1746536647347,87.58090912,143.01,142.97,13.18839112]
[1746536647748,94.98938701,143.01,142.97,20.59686901]
[1746536648360,20.59686901,143.0,142.96,28.68696901]
[1746536648667,87.99686901,143.0,142.96,28.68696901]
[1746536648871,20.59686901,142.99,142.94,13.72]
[1746536649062,6.99398517,142.98,142.95,20.59686901]
[1746536649646,6.99398517,142.98,142.94,13.72]
[1746536649868,6.99398517,142.98,142.95,20.59686901]
[1746536650355,6.99398517,142.98,142.94,13.72]
[1746536650554,6.99398517,142.98,142.95,20.59686901]
[1746536650759,74.39398517,142.98,142.95,20.59686901]
[1746536657359,67.4,142.97,142.92,7.6458]
[1746536657584,67.4,142.97,142.93,20.59686901]
[1746536657967,67.4,142.97,142.94,20.59686901]
[1746536658178,6.99496362,142.96,142.94,20.59686901]
[1746536659189,6.99496362,142.96,142.92,7.6458]
[1746536659561,6.99496362,142.96,142.94,20.59686901]
[1746536660066,6.99496362,142.96,142.92,7.6458]
[1746536660285,45.07924169,142.96,142.92,6.0485]